{"text_format":"1","workbook":"xlsx","n_sheets":6,"sheets":["A) ESTADO REPR. GASTOS","B) DETALLE OTROS ING. O SUBV.","Anexo 1. Gastos de Personal","Anexo 2. Viajes y Dietas","Anexo 3 Actividades Científica","Anexo 4. Otros Gastos"],"not_rendered":{"charts":0,"images":0,"macros":0,"external_links":0,"defined_names":13,"comments":0,"pivot_tables":0},"unopened":[],"bounds":{"document_bytes":16777216,"sheet_cells":100000,"rows_first":2000,"rows_last":500,"rows_between":2000,"halvings":0,"cell_chars":16384,"cell_head_chars":4096},"cells_cut":0,"cells_raw":0,"read":"whole","date_system":"1900"}

{"sheet":"A) ESTADO REPR. GASTOS","index":0,"n_rows":122,"n_cols":10,"rows_kept":122,"cut":false,"hidden":false,"merged":[[67,2,77,2],[62,2,65,2],[61,3,77,3],[18,1,18,9],[19,1,19,9],[69,8,77,9],[72,7,76,7],[61,0,61,1],[75,0,75,1],[59,0,59,9],[21,1,21,6],[69,0,69,1],[70,0,70,1],[72,0,72,1],[73,0,73,1],[74,0,74,1],[1,0,1,9],[3,0,3,9],[58,0,58,9],[83,0,83,9],[89,0,89,1],[77,0,77,1],[79,0,79,1],[78,0,78,1],[80,0,80,1],[81,0,81,1],[6,1,6,8],[7,1,7,8],[8,3,8,8],[16,1,16,9],[17,1,17,9],[76,0,76,1],[121,0,121,9],[63,7,65,9],[92,0,92,1],[95,0,95,9],[100,0,100,9],[84,0,84,9],[85,0,85,9],[90,0,90,1],[91,0,91,1],[63,0,63,1],[64,0,64,1],[65,0,65,1],[67,0,67,1],[68,0,68,1],[86,0,86,9]]}
[]
["Subprograma Severo Ochoa. Convocatoria 2011- Informe de Seguimiento Económico Bienal. Memoria económica abreviada (versión 05/2013)"]
[]
[" MEMORIA ECONÓMICA ABREVIADA"]
[]
[]
["BENEFICIARIO:","Introduzca el nombre del Beneficiario"]
["CENTRO:","Introduzca el nombre del Centro Acreditado como Severo Ochoa"]
["AÑO:","Año","C.I.F.:","Introduzca el CIF del beneficiario"]
[]
[" PERIODO DE EJECUCIÓN :","INICIO (dd/mm/aaaa):"]
[null,"FIN (dd/mm/aaaa):"]
[]
[]
["MODIFICACIONES DE LA RESOLUCIÓN DE CONCESIÓN"]
[]
["FECHA DE LA RESOLUCIÓN","CONCEPTO MODIFICADO"]
[]
[]
[]
[]
["Fdo. D./Dña."]
["FECHA DE REALIZACIÓN DE LA MEMORIA:"]
[]
[]
["ESTADO REPRESENTATIVO DE LOS GASTOS INCURRIDOS EN LA REALIZACIÓN DE LAS ACTIVIDADES"]
[]
["Incluya a continuación una descripción de los gastos realizados en el período imputables a la subvención recibida. "]
[]
[]
[]
[]
[]
[]
[]
[]
[]
[]
[]
[]
[]
[]
[]
[]
[]
[]
[]
[]
[]
[]
[]
[]
[]
[]
[]
[]
[]
[]
["A continuación consigne los valores totales correspondientes a los conceptos de gasto que se indican. En caso de cofinanciación, consigne el gasto total en la columna correspondiente a \"gasto real\"."]
["Compruebe que estos totales corresponden con la suma de los conceptos detallados en los anexos correspondientes."]
["GASTOS REALIZADOS",null,"Presupuesto (1)","%","Gasto real (€)","Cofinanciación (€)","Imputable a SO (€)","%","Resto","Gastado  %"]
[" COSTES DIRECTOS",null,null,null,{"$f":"+E63+E67+E69","v":0},{"$f":"+F63+F67+F69","v":0},{"$f":"+G63+G67+G69","v":0},{"$f":"+G62/$G$82","v":{"$error":"#DIV/0!"}},{"$f":"+C62-G62","v":0},{"$f":"+G62/$C$90","v":0}]
["GASTOS PERSONAL (2)",null,null,null,{"$f":"SUM(E64:E66)","v":0},{"$f":"E63-G63","v":0},{"$f":"SUM(G64:G66)","v":0},{"$f":"+G63/$G$82","v":{"$error":"#DIV/0!"}},null,{"$f":"+G63/$C$90","v":0}]
["1.  Salario bruto ",null,null,null,null,{"$f":"E64-G64","v":0}]
["2.  Seguridad Social (empresa)",null,null,null,null,{"$f":"E65-G65","v":0}]
["3. Pagas extras y atrasos",null,null,null,null,0]
[" COMPLEMENTOS SALARIALES",null,null,null,{"$f":"SUM(E68)","v":0},{"$f":"E67-G67","v":0},{"$f":"SUM(G68)","v":0},{"$f":"+G67/$G$82","v":{"$error":"#DIV/0!"}},{"$f":"+C67-G67","v":0},{"$f":"+G67/$C$90","v":0}]
["4. Complementos salariales (2)",null,null,null,null,0]
["GASTOS DE EJECUCIÓN",null,null,null,{"$f":"+E70+E72","v":0},{"$f":"E69-G69","v":0},{"$f":"+G70+G72","v":0},{"$f":"+G69/$G$82","v":{"$error":"#DIV/0!"}},null,{"$f":"+G69/$C$90","v":0}]
["EQUIPAMIENTO",null,null,null,{"$f":"SUM(E71:E71)","v":0},{"$f":"E70-G70","v":0},{"$f":"SUM(G71:G71)","v":0},{"$f":"+G70/$G$82","v":{"$error":"#DIV/0!"}}]
["5. Bienes inventariables",null,null,null,null,0]
[" OTROS GASTOS ",null,null,null,{"$f":"SUM(E73:E78)","v":0},{"$f":"E72-G72","v":0},{"$f":"SUM(G73:G78)","v":0},{"$f":"+G72/$G$82","v":{"$error":"#DIV/0!"}}]
["6. Material fungible",null,null,null,null,{"$f":"E73-G73","v":0}]
["7. Contratación  (consultoría, asistencia técnica u otros servicios)",null,null,null,null,0]
["8. Viajes y dietas del personal del centro o de otras personas, imputables al proyecto. (3)",null,null,null,null,0]
["9. Organización de actividades científicas, conferencias, seminarios, etc. (4) ",null,null,null,null,0]
["10. Otros (especificar)",null,null,null,null,0]
["11. Informe de auditoria ",null,null,null,null,0,null,{"$f":"+G78/$G$82","v":{"$error":"#DIV/0!"}}]
[" COSTES INDIRECTOS",null,null,{"$f":"+C79/$C$62","v":{"$error":"#DIV/0!"}},{"$f":"+E80","v":0},{"$f":"E79-G79","v":0},{"$f":"+G80","v":0},{"$f":"+G79/$G$82","v":{"$error":"#DIV/0!"}},{"$f":"+C79-G79","v":0},{"$f":"+G79/$C$90","v":0}]
["COSTES INDIRECTOS"]
[]
["TOTAL GASTOS",null,{"$f":"+C62+C79","v":0},null,{"$f":"+E63+E67+E69+E79","v":0},{"$f":"+F63+F67+F69+F79","v":0},{"$f":"+G63+G67+G69+G79","v":0},{"$f":"+H63+H67+H69+H79","v":{"$error":"#DIV/0!"}},{"$f":"+I62+I79","v":0},{"$f":"+G82/$C$90","v":0}]
[]
["(1) Introduzca en las casillas marcadas en verde el presupuesto y la distribución que figura en la resolución de concesión. En el caso de que ésta haya sido modificada, consigne los datos de la última modificación."]
["(2) Introduzca en el Anexo 1 los detalles correspondientes a los gastos de personal contratado así como los complementos salariales. En las casillas de color verde claro deberán consignarse los totales."]
["(3) Introduzca en el Anexo 2 los gastos detallados correspondientes a viajes y dietas imputables a la ayuda Severo Ochoa."]
["(4) Introduzca en el Anexo 3 los gastos detallados correspondientes a esta actividades. Si la organización de estas actividades incluye el pago de viajes y dietas, deberan consignarse aquí."]
[]
["INGRESOS PARA LA ACTIVIDAD",null,"Presupuesto   (€)","%",null,null,"Gasto (€)","%","Resto","Gastado (%)"]
["1. Ayuda Severo Ochoa",null,4000000,{"$f":"+C90/$C$94","v":1},null,null,{"$f":"G82","v":0},{"$f":"+G90/$G$94","v":{"$error":"#DIV/0!"}},{"$f":"+C90-G90","v":4000000},{"$f":"G90/C90","v":0}]
["2. Otras subvenciones o ayudas",null,null,{"$f":"+C91/$C$94","v":0},null,null,null,{"$f":"+G91/$G$94","v":{"$error":"#DIV/0!"}},{"$f":"+C91-G91","v":0},{"$f":"G91/C91","v":{"$error":"#DIV/0!"}}]
["3. Financiación de la propia entidad",null,null,{"$f":"+C92/$C$94","v":0},null,null,null,{"$f":"+G92/$G$94","v":{"$error":"#DIV/0!"}},{"$f":"+C92-G92","v":0},{"$f":"G92/C92","v":{"$error":"#DIV/0!"}}]
["4. Otros ingresos (especificar) (5)",null,null,{"$f":"+C93/$C$94","v":0},null,null,null,{"$f":"+G93/$G$94","v":{"$error":"#DIV/0!"}},{"$f":"+C93-G93","v":0},{"$f":"G93/C93","v":{"$error":"#DIV/0!"}}]
["TOTAL INGRESOS",null,{"$f":"SUM(C90:C92)","v":4000000},{"$f":"SUM(D90:D92)","v":1},null,null,{"$f":"SUM(G90:G93)","v":0},{"$f":"SUM(H90:H92)","v":{"$error":"#DIV/0!"}},{"$f":"SUM(I90:I92)","v":4000000},{"$f":"G94/C94","v":0}]
[]
["(5) Incluye los ingresos por pago de cuotas, matrículas o inscripciones a las actividades científicas, conferencias, etc. organizadas por el centro."]
[]
["SALDO TOTAL =  INGRESOS - GASTOS",null,{"$f":"+C94-C82","v":4000000},null,null,null,{"$f":"+G94-G82","v":0},null,{"$f":"+I94-I82","v":4000000}]
[]
[]
["Indique las principales causas que explican las desviaciones sobre la distribución del presupuesto establecido en la resolución de concesión y justifíquelas."]
[]
[]
[]
[]
[]
[]
[]
[]
[]
[]
[]
[]
[]
[]
[]
[]
[]
[]
[]
[]
["Observaciones por parte del beneficiario"]

{"sheet":"B) DETALLE OTROS ING. O SUBV.","index":1,"n_rows":88,"n_cols":8,"rows_kept":88,"cut":false,"hidden":false,"merged":[[0,0,0,8],[2,0,2,8],[3,0,3,8],[37,1,37,5],[6,1,6,8],[7,1,7,8],[8,3,8,8],[30,0,30,7],[32,1,32,5],[33,1,33,5],[34,1,34,5],[35,1,35,5],[36,1,36,5],[44,1,44,5],[38,1,38,5],[39,1,39,5],[40,1,40,5],[41,1,41,5],[42,1,42,5],[43,1,43,5]]}
["Subprograma Severo Ochoa. Convocatoria 2011- Informe de Seguimiento Económico Bienal. Memoria económica abreviada (versión 05/2013)"]
[]
["MEMORIA ECONÓMICA ABREVIADA"]
["DETALLE DE OTROS INGRESOS O SUBVENCIONES QUE HAN FINANCIADO LOS GASTOS SUBVENCIONABLES"]
[]
[]
["BENEFICIARIO:",{"$f":"'A) ESTADO REPR. GASTOS'!B7:I7","v":"Introduzca el nombre del Beneficiario"}]
["CENTRO:",{"$f":"'A) ESTADO REPR. GASTOS'!B8:I8","v":"Introduzca el nombre del Centro Acreditado como Severo Ochoa"}]
["AÑO:",{"$f":"'A) ESTADO REPR. GASTOS'!B9","v":"Año"},"C.I.F.:",{"$f":"'A) ESTADO REPR. GASTOS'!D9:I9","v":"Introduzca el CIF del beneficiario"}]
[]
[" PERIODO DE EJECUCIÓN :","INICIO (dd/mm/aaaa):"]
[null,"FIN (dd/mm/aaaa):"]
[]
[]
[]
[]
["Nº Orden","Procedencia de los fondos","Fecha Resolución","a) Importe otorgado gastos personal (GP)","b) Importe otorgado otros gastos corrientes (OGC)","c) Importe otorgado gastos equipamiento (GE)","d) Importe otorgado otros (especificar)","Totales"]
[1,null,null,null,null,null,null,{"$f":"+D18+E18+F18+G18","v":0}]
[{"$f":"+A18+1","v":2},null,null,null,null,null,null,{"$f":"+D19+E19+F19+G19","v":0}]
[3,null,null,null,null,null,null,{"$f":"+D20+E20+F20+G20","v":0}]
[4,null,null,null,null,null,null,0]
[5,null,null,null,null,null,null,0]
[6,null,null,null,null,null,null,0]
[7,null,null,null,null,null,null,0]
[8,null,null,null,null,null,null,0]
[9,null,null,null,null,null,null,0]
[10,null,null,null,null,null,null,0]
["…"]
[null,null,"TOTALES",{"$f":"SUM(D18:D27)","v":0},{"$f":"SUM(E18:E27)","v":0},{"$f":"SUM(F18:F27)","v":0},{"$f":"SUM(G18:G27)","v":0},{"$f":"SUM(H18:H27)","v":0}]
[]
["En caso de haberse otorgado para varios conceptos sin especificar los importes individualizados debe imputar la cuantía total en la columna d) y explicar los conceptos subvencionados en la tabla adjunta."]
[]
["Nº Orden","Conceptos subvencionados",null,null,null,null,"d) Importe otorgado otros (especificar)"]
[1,null,null,null,null,null,{"$f":"$G18","v":0}]
[null,null,null,null,null,null,{"$f":"$G19","v":0}]
[null,null,null,null,null,null,{"$f":"$G20","v":0}]
[null,null,null,null,null,null,0]
[null,null,null,null,null,null,0]
[null,null,null,null,null,null,0]
[null,null,null,null,null,null,0]
[null,null,null,null,null,null,0]
[null,null,null,null,null,null,0]
[null,null,null,null,null,null,0]
[null,null,null,null,null,null,0]
[null,null,null,null,null,null,{"$f":"SUM(G34:G43)","v":0}]
[]
[]
["Distribución porcentual de la procedencia de los fondos"]
[0,"Ayuda Severo Ochoa",{"$f":"'A) ESTADO REPR. GASTOS'!C90/'A) ESTADO REPR. GASTOS'!C94","v":1}]
[1,{"$f":"+B18","v":0},{"$f":"+H18/$H$29","v":{"$error":"#DIV/0!"}}]
[{"$f":"+A50+1","v":2},{"$f":"+B19","v":0},{"$f":"+H19/$H$29","v":{"$error":"#DIV/0!"}}]
[{"$f":"+A51+1","v":3},{"$f":"+B20","v":0},{"$error":"#DIV/0!"}]
[4,{"$f":"+B21","v":0},{"$error":"#DIV/0!"}]
[5,0,{"$error":"#DIV/0!"}]
[6,0,{"$error":"#DIV/0!"}]
[7,0,{"$error":"#DIV/0!"}]
[8,0,{"$error":"#DIV/0!"}]
[9,0,{"$error":"#DIV/0!"}]
[10,0,{"$error":"#DIV/0!"}]
[]
[null,"TOTALES",{"$f":"SUM(C49:C59)","v":{"$error":"#DIV/0!"}}]
[]
["Fondos adicionales recibidos para el desarrollo de las actividades subvencionadas y justificación de que no se supera el coste total de la actividad."]
[]
[]
[]
[]
[]
[]
[]
[]
[]
[]
[]
[]
[]
[]
[]
[]
[]
[]
[]
[]
[null,"Fdo.  ___________________________________________________________ "]
[]
[]
[null,"NIF:"]
[null,"En calidad de (cargo o vinculación): "]

{"sheet":"Anexo 1. Gastos de Personal","index":2,"n_rows":10,"n_cols":11,"rows_kept":10,"cut":false,"hidden":false,"merged":[[8,8,8,9],[0,0,0,7]]}
["ANEXO 1. GASTOS DE PERSONAL "]
[]
[]
[]
[]
[]
[]
[]
[null,null,null,null,null,null,null,null,"COMPLEMENTO SALARIAL"]
["APELLIDO 1","APELLIDO 2","NOMBRE","NIF/NIE","CATEGORÍA PROFESIONAL","ACTIVIDAD REALIZADA","FECHA DE ALTA","FECHA DE BAJA (en su caso)","SI/NO","IMPORTE","OBSERVACIONES"]

{"sheet":"Anexo 2. Viajes y Dietas","index":3,"n_rows":44,"n_cols":17,"rows_kept":44,"cut":false,"hidden":false,"merged":[[11,1,11,4],[11,12,11,16],[11,8,11,11],[43,1,43,15],[1,1,1,14]]}
[]
[null,"ANEXO 2. GASTOS EN VIAJES Y DIETAS"]
[]
[]
[]
[]
[]
[]
[]
[]
[]
[null,"COMISIONADO",null,null,null,null,null,null,"JUSTIFICACIÓN DEL VIAJE",null,null,null,"DESGLOSE ECONOMICO"]
[null,"APELLIDO1","APELLIDO2","NOMBRE","NIF/NIE","FECHA INICIO VIAJE","FECHA FIN VIAJE","VINCULACIÓN CON EL CENTRO (*)","DESTINO","MOTIVO ","FECHA INICIO de la actividad","FECHA FIN de la actividad","LOCOMOCIÓN","ALOJAMIENTO ","MANUTENCION","COSTES DE INSCRIPCIÓN","TOTAL"]
[]
[]
[]
[]
[]
[]
[]
[]
[]
[]
[]
[]
[]
[]
[]
[]
[]
[]
[]
[]
[]
[]
[]
[]
[]
[]
[]
[]
[]
[null,"* Indique su categoría profesional (investigador, contratado, becario). Si no pertenece al centro, consigne \"Externo\""]
[null,"TOTAL "]

{"sheet":"Anexo 3 Actividades Científica","index":4,"n_rows":32,"n_cols":13,"rows_kept":32,"cut":false,"hidden":false,"merged":[[1,1,1,11],[11,5,11,6],[23,2,23,4],[24,2,24,4],[25,2,25,4],[11,1,12,1],[11,2,12,4],[17,2,17,4],[18,2,18,4],[19,2,19,4],[13,2,13,4],[14,2,14,4],[15,2,15,4],[16,2,16,4],[30,10,30,12],[20,2,20,4],[21,2,21,4],[22,2,22,4],[30,1,30,4],[30,7,30,9],[26,2,26,4]]}
[]
[null,"ANEXO 3. ORGANIZACIÓN DE ACTIVIDADES CIENTÍFICAS"]
[]
[]
[]
[]
[]
[]
[]
[null,"A) GASTOS DE ORGANIZACIÓN"]
[]
[null,"IDENTIFICACIÓN DEL GASTO","JUSTIFICACIÓN",null,null,"IMPORTE "]
[null,null,null,null,null,"BASE IMPONIBLE","IVA"]
[]
[]
[]
[]
[]
[]
[]
[]
[]
[]
[]
[]
[]
[]
[]
[null,"B) GASTOS DE VIAJES ASOCIADOS A LA ACTIVIDAD CIENTÍFICA"]
[]
[null,"DESTINATARIO",null,null,null,null,null,"JUSTIFICACION DEL VIAJE",null,null,"DATOS ECONÓMICOS"]
[null,"APELLIDO1","APELLIDO2","NOMBRE","NIF/NIE","FECHA INICIO VIAJE","FECHA FIN VIAJE","MOTIVO ","FECHA INICIO de la actividad","FECHA FIN de la actividad","COSTE TOTAL (€)","COFINANCIACIÓN (€)","IMPUTABLE A SO (€)"]

{"sheet":"Anexo 4. Otros Gastos","index":5,"n_rows":35,"n_cols":8,"rows_kept":35,"cut":false,"hidden":false,"merged":[[1,0,1,9],[3,0,4,2],[3,3,3,4],[3,5,4,6],[3,7,4,9],[5,0,5,2],[5,5,5,6],[5,7,5,9],[8,0,8,2],[8,5,8,6],[8,7,8,9],[9,0,9,2],[9,5,9,6],[9,7,9,9],[6,0,6,2],[6,5,6,6],[6,7,6,9],[7,0,7,2],[7,5,7,6],[7,7,7,9],[12,0,12,2],[12,5,12,6],[12,7,12,9],[13,0,13,2],[13,5,13,6],[13,7,13,9],[10,0,10,2],[10,5,10,6],[10,7,10,9],[11,0,11,2],[11,5,11,6],[11,7,11,9],[20,0,20,2],[20,5,20,6],[20,7,20,9],[21,0,21,2],[21,5,21,6],[21,7,21,9],[14,0,14,2],[14,5,14,6],[14,7,14,9],[16,0,16,9],[18,0,19,2],[18,3,18,4],[18,5,19,6],[18,7,19,9],[24,0,24,2],[24,5,24,6],[24,7,24,9],[25,0,25,2],[25,5,25,6],[25,7,25,9],[22,0,22,2],[22,5,22,6],[22,7,22,9],[23,0,23,2],[23,5,23,6],[23,7,23,9],[28,0,28,2],[28,5,28,6],[28,7,28,9],[29,0,29,2],[29,5,29,6],[29,7,29,9],[26,0,26,2],[26,5,26,6],[26,7,26,9],[27,0,27,2],[27,5,27,6],[27,7,27,9],[36,7,36,9],[37,0,37,2],[37,5,37,6],[37,7,37,9],[31,0,31,9],[33,0,34,2],[33,3,33,4],[33,5,34,6],[33,7,34,9],[35,0,35,2],[35,5,35,6],[35,7,35,9],[44,0,44,2],[44,5,44,6],[44,7,44,9],[0,0,0,10],[42,0,42,2],[42,5,42,6],[42,7,42,9],[43,0,43,2],[43,5,43,6],[43,7,43,9],[40,0,40,2],[40,5,40,6],[40,7,40,9],[41,0,41,2],[41,5,41,6],[41,7,41,9],[38,0,38,2],[38,5,38,6],[38,7,38,9],[39,0,39,2],[39,5,39,6],[39,7,39,9],[36,0,36,2],[36,5,36,6]]}
["ANEXO 4. GASTOS DE BIENES INVENTARIABLES, MATERIAL FUNGIBLE Y OTROS GASTOS"]
["En el caso de la adquisición de bienes inventariables y si la base imponible es superior al límite que establece el artículo 31.3 de la Ley 38/2003 General de Subvenciones (18.000 Euros), en aplicación del mismo debe aportar la  copia de las tres ofertas pedidas, y explicación del criterio seguido para la selección. Si el extremo anterior no fuese necesario por las especiales características de los bienes adquiridos o de sus proveedores, debe aportar certificado firmado por el órgano de contratación del centro o unidad responsable así como el certificado de exclusividad firmado por el proveedor o fabricante."]
[]
["IDENTIFICACIÓN DE LOS BIENES INVENTARIABLES",null,null,"IMPORTE",null,"EMPRESA PROVEEDORA",null,"JUSTIFICACIÓN DE LA ADQUISICIÓN"]
[null,null,null,"BASE IMPONIBLE","IVA"]
[]
[]
[]
[]
[]
[]
[]
[]
[]
[]
[]
["Material fungible. Es necesaria la descripción del gasto realizado. NO SON ACEPTABLES DESCRIPCIONES GENÉRICAS que no permitan establecer la vinculación del gasto efectuado con la actividad subvencionada."]
[]
["IDENTIFICACIÓN del GASTO EN MATERIAL FUNGIBLE",null,null,"IMPORTE",null,"EMPRESA PROVEEDORA",null,"JUSTIFICACIÓN DE LA ADQUISICIÓN"]
[null,null,null,"BASE IMPONIBLE","IVA"]
[]
[]
[]
[]
[]
[]
[]
[]
[]
[]
[]
["Otros gastos. Es necesaria la descripción de los gastos incluidos en la justificación que no se han consignado en el resto de las categorías (seguros, gastos de mensajería, servicios internos, etc.)"]
[]
["IDENTIFICACIÓN del GASTO ",null,null,"IMPORTE",null,"EMPRESA PROVEEDORA",null,"JUSTIFICACIÓN "]
[null,null,null,"BASE IMPONIBLE","IVA"]